bitfinex-derivatives/quotes_ETHF0:USTF0_20241023
["timestamp","ask_amount","ask_price","bid_price","bid_amount"]
[1729693146862,0.5418,2574.0,2573.8,41.18874]
[1729693146863,0.5418,2574.0,2573.9,0.38872]
[1729693147366,0.93051,2574.0,2573.9,0.91742]
[1729693147564,0.38871,2574.0,2573.9,0.91742]
[1729693148469,3.5657,2574.1,2573.8,40.8]
[1729693148769,0.95222,2573.9,2573.8,41.18872]
[1729693149865,7.86782,2573.9,2573.8,40.8]
[1729693150064,7.86782,2573.9,2573.1,4.3592]
[1729693150065,0.97187,2573.8,2573.1,4.3592]
[1729693150265,0.3888,2573.5,2573.4,0.38878]
[1729693150461,3.2078,2573.7,2573.4,0.38878]
[1729693150462,7.66436024,2573.7,2573.4,40.8]
[1729693150664,0.38876,2573.7,2573.6,0.38877]
[1729693150867,0.38876,2573.7,2573.4,40.8]
[1729693150868,0.38877,2573.6,2573.5,0.5435]
[1729693151074,0.38878,2573.5,2573.4,40.8]
[1729693151263,0.38878,2573.5,2573.4,41.1888]
[1729693151463,0.97538,2573.5,2573.4,41.1888]
[1729693152060,0.5866,2573.5,2573.4,41.1888]
[1729693152262,0.5742,2573.6,2573.5,0.38878]
[1729693152466,3.2078,2573.7,2573.6,0.38877]
[1729693152666,0.38874,2573.8,2573.7,0.38875]
[1729693153775,1.50663,2573.9,2573.8,0.38874]
[1729693153967,1.50662,2573.9,2573.8,0.38874]
[1729693154164,3.2078,2574.0,2573.6,1.6732]
[1729693154362,0.38873,2573.9,2573.8,0.38872]
[1729693154563,6.2378,2574.0,2573.6,1.6732]
[1729693154981,0.38875,2573.8,2573.7,0.38875]
[1729693155269,3.59651,2574.0,2573.9,0.38872]
[1729693155780,0.38873,2573.9,2573.8,0.38873]
[1729693156274,6.2378,2574.0,2573.6,1.6732]
[1729693156475,0.38875,2573.7,2573.6,1.53076]
[1729693157275,0.95214,2573.8,2573.7,0.38875]
[1729693158980,3.2078,2574.0,2573.6,1.142]
[1729693159181,3.2078,2574.0,2573.8,0.38873]
[1729693159182,0.38873,2573.9,2573.8,0.38873]
[1729693159581,3.2078,2574.0,2573.9,0.38872]
[1729693159582,3.59652,2574.0,2573.9,0.38872]
[1729693159786,3.2078,2574.0,2573.9,0.38872]
[1729693160086,0.38875,2573.8,2573.7,0.38875]
[1729693160286,0.38875,2573.7,2573.6,0.5856]
[1729693160475,1.0688,2573.7,2573.4,40.8]
[1729693160675,1.45756,2573.7,2573.6,0.38877]
[1729693160882,0.38878,2573.6,2573.5,0.38878]
[1729693161375,7.20958,2574.0,2573.4,40.8]
[1729693161594,0.38874,2573.9,2573.8,0.38873]
[1729693161887,0.38877,2573.7,2573.6,0.38875]
[1729693162686,0.93646,2573.8,2573.7,0.38875]
[1729693163490,0.38877,2573.7,2573.6,0.38876]
[1729693164883,0.5477,2573.8,2573.4,40.8]
[1729693165091,3.41878,2573.5,2573.4,40.8]
[1729693165778,3.41878,2573.5,2572.9,0.5797]
[1729693165779,0.97206,2573.3,2572.9,0.5797]
[1729693165984,3.03,2573.1,2572.9,0.5797]
[1729693166183,0.38886,2573.0,2572.9,0.96857]
[1729693166384,0.5523,2573.0,2572.9,0.96857]
[1729693166795,0.5641,2573.2,2573.0,0.38886]
[1729693166796,0.38886,2573.1,2573.0,0.38886]
[1729693167689,0.5641,2573.2,2572.9,41.3797]
[1729693167690,0.95294,2573.2,2573.1,0.38884]
[1729693169391,3.2078,2573.4,2573.3,0.38881]
[1729693170393,0.38881,2573.3,2573.2,0.92922]
[1729693170589,0.38886,2573.1,2573.0,0.38885]
[1729693170888,0.38884,2573.2,2573.1,0.38883]
[1729693173885,3.5366,2573.3,2573.0,0.38885]
[1729693173886,0.38886,2573.1,2573.0,0.38885]
[1729693174383,4.72907484,2573.2,2573.1,0.38883]
[1729693175088,0.38884,2573.2,2573.1,0.38883]
[1729693175288,0.89543,2573.3,2573.2,0.38883]
[1729693175882,0.5066,2573.3,2573.1,0.4955]
[1729693176080,0.38883,2573.2,2573.1,0.88433]
[1729693177991,0.89542,2573.3,2573.2,0.38883]
[1729693178198,3.6858,2573.4,2573.3,0.38881]
[1729693178199,4.0746,2573.4,2573.3,0.38881]
[1729693178494,3.6858,2573.4,2573.3,0.38881]
[1729693178688,4.0746,2573.4,2573.3,0.38881]
[1729693179986,0.38884,2573.2,2573.1,0.38883]
[1729693180894,3.03,2573.3,2572.9,41.3797]
[1729693181098,0.38886,2573.0,2572.9,41.76856]
[1729693181297,0.4815,2573.1,2573.0,0.38886]
[1729693182892,0.4815,2573.1,2572.9,41.76856]
[1729693183097,0.38886,2573.0,2572.9,41.76856]
[1729693183292,0.88016,2573.0,2572.9,41.76856]
[1729693185293,3.91016,2573.0,2572.9,40.8]
[1729693185594,3.91016,2573.0,2572.9,41.18888]
[1729693188198,3.91016,2573.0,2572.9,40.8]
[1729693188395,7.79656,2573.0,2572.9,40.8]
[1729693188591,0.3889,2572.8,2572.7,0.38888]
[1729693188794,7.80914583,2573.0,2572.6,0.4853]
[1729693189000,0.38891,2572.7,2572.6,0.87421]
[1729693189301,0.38891,2572.7,2572.6,41.2853]
[1729693189488,0.38891,2572.7,2572.6,40.8]
[1729693189896,0.38891,2572.7,2572.6,41.18892]
[1729693190902,0.38891,2572.7,2572.6,40.8]
[1729693191102,4.5450447,2572.7,2572.6,40.8]
[1729693191402,4.5450447,2572.7,2572.6,41.18892]
[1729693194992,4.5450447,2572.7,2572.6,40.8]
[1729693195196,0.97233,2572.6,2572.2,0.89237]
[1729693195397,0.97233,2572.6,2572.3,0.38895]
[1729693195398,3.41897,2572.4,2572.3,0.38895]
[1729693195598,1.93503,2572.6,2572.4,0.38895]
[1729693195599,4.74261972,2572.5,2572.4,0.38895]
[1729693195902,0.38894,2572.5,2572.4,0.38895]
[1729693197106,1.35164,2572.6,2572.5,0.38894]
[1729693197410,5.80164362,2572.6,2572.5,0.38894]
[1729693198908,5.41270362,2572.6,2572.5,0.38894]
[1729693199113,1.94395,2573.5,2572.5,3.8872]
[1729693199114,8.00564,2573.2,2572.5,3.8872]
[1729693199310,8.00564,2573.2,2573.1,0.38884]
[1729693199311,6.2378,2573.2,2573.1,0.38884]
[1729693199612,0.38883,2573.3,2573.2,0.38882]
[1729693199909,0.38883,2573.3,2573.1,0.38883]
[1729693199910,4.77566341,2573.2,2573.1,0.38883]
[1729693200108,7.80566341,2573.2,2573.1,0.38883]
[1729693200305,7.80566341,2573.2,2572.9,0.4966]
[1729693200306,3.03,2573.2,2572.9,0.4966]
[1729693200610,0.38886,2573.0,2572.9,0.38888]
[1729693200907,4.85339808,2573.0,2572.9,0.38888]
[1729693201304,0.38886,2573.0,2572.9,0.38888]
[1729693202209,0.38887,2573.0,2572.7,0.4966]
[1729693202410,0.38887,2573.0,2572.9,0.38888]
[1729693202798,0.38886,2573.1,2573.0,0.38885]
[1729693203002,6.2378,2573.2,2573.1,0.38884]
[1729693203003,3.2078,2573.2,2573.1,0.38884]
[1729693204502,3.59663,2573.2,2573.1,0.38884]
[1729693204698,3.03,2573.2,2572.7,0.4966]
[1729693204898,3.41884,2573.2,2573.1,0.38884]
[1729693205303,3.03,2573.2,2572.7,0.4966]
[1729693205499,3.03,2573.2,2572.7,0.8855]
[1729693205500,0.38889,2572.8,2572.7,0.8855]
[1729693205704,0.38895,2572.5,2572.3,40.8]
[1729693205900,0.38895,2572.5,2572.4,0.86135]
[1729693206408,0.38891,2572.7,2572.6,0.38892]
[1729693206604,0.3889,2572.8,2572.7,0.38889]
[1729693206915,3.2078,2572.9,2572.4,0.4724]
[1729693206916,3.59668,2572.9,2572.8,0.38889]
[1729693208010,3.2078,2572.9,2572.4,0.4724]
[1729693208208,0.38892,2572.7,2572.6,0.38891]
[1729693208711,0.38892,2572.7,2572.4,0.4724]
[1729693208712,3.5105,2572.8,2572.4,0.4724]
[1729693208902,0.38894,2572.6,2572.5,0.38892]
[1729693209804,0.4452,2572.7,2572.4,0.4724]
[1729693209805,0.38894,2572.5,2572.4,0.4724]
[1729693210006,0.38895,2572.4,2572.3,40.8]
[1729693210208,0.83495,2572.4,2572.3,40.8]
[1729693210509,3.86495,2572.4,2572.3,40.8]
[1729693210708,0.38897,2572.3,2572.2,3.2078]
[1729693211011,0.38901,2572.0,2571.9,3.2078]
[1729693211203,0.38901,2572.0,2571.9,44.0078]
[1729693211401,4.27701,2572.0,2571.9,40.8]
[1729693211600,4.32387846,2572.0,2571.6,0.97268]
[1729693211911,0.38902,2572.0,2571.9,0.38903]
[1729693212106,0.8342,2572.2,2572.1,0.389]
[1729693212309,0.8342,2572.2,2571.9,40.8]
[1729693212310,0.389,2572.1,2572.0,1.31791]
[1729693212515,0.4519,2572.2,2572.0,0.9289]
[1729693212713,0.84089,2572.2,2572.1,0.389]
[1729693214104,3.2078,2572.3,2572.2,0.38898]
[1729693214304,0.83496,2572.4,2572.3,0.38897]
[1729693214708,0.446,2572.4,2572.3,0.38897]
[1729693215211,0.38897,2572.3,2572.2,0.38897]
[1729693215512,0.83496,2572.4,2572.3,0.38897]
[1729693215814,0.446,2572.4,2572.3,0.38897]
[1729693216009,3.41894,2572.5,2572.3,0.38897]
[1729693216219,3.2078,2572.9,2572.4,3.8872]
[1729693216411,3.2078,2572.9,2571.9,40.8]
[1729693216412,0.38885,2573.1,2573.0,0.38886]
[1729693216609,0.38885,2573.1,2572.8,0.38888]
[1729693216610,0.38889,2572.9,2572.8,0.38888]
[1729693216809,3.03,2572.9,2572.5,4.1391]
[1729693217010,3.41892,2572.7,2572.6,0.38892]
[1729693217309,3.41891,2572.7,2572.6,0.38892]
[1729693217517,3.03,2572.9,2572.5,4.1391]
[1729693217823,0.38887,2573.0,2572.9,0.38886]
[1729693218003,6.2378,2573.1,2572.5,4.1391]
[1729693218208,3.2078,2573.1,2573.0,0.38886]
[1729693218409,3.2078,2573.1,2573.0,41.18886]
[1729693219314,3.59664,2573.1,2573.0,41.18886]
[1729693219513,3.2078,2573.1,2573.0,41.18886]
[1729693220018,3.59664,2573.1,2573.0,41.18886]
[1729693220219,1.94367,2573.9,2573.0,41.18886]
[1729693220220,3.2078,2573.7,2573.1,0.97212]
[1729693220417,1.1810491,2574.0,2573.2,0.4841]
[1729693220418,3.4808,2573.8,2573.2,0.4841]
[1729693220609,3.4808,2573.8,2573.7,0.38875]
[1729693220809,3.4808,2573.8,2573.4,3.2078]
[1729693220810,4.15584717,2573.7,2573.4,3.2078]
[1729693221012,7.63664717,2573.8,2573.7,0.38875]
[1729693221210,3.86954,2573.8,2573.7,0.38875]
[1729693221510,12.21798299,2573.8,2573.6,0.38876]
[1729693221714,8.33238299,2573.8,2573.4,3.2078]
[1729693222008,4.91364299,2573.8,2573.7,0.38875]
[1729693222212,1.848,2574.2,2573.4,4.17979]
[1729693222213,0.84991,2574.1,2573.9,0.38871]
[1729693222417,0.38873,2573.9,2573.8,0.38873]
[1729693222615,3.03,2574.0,2573.4,3.2078]
[1729693222922,3.41872,2574.0,2573.8,0.38873]
[1729693223412,0.38876,2573.7,2573.5,0.38878]
[1729693223609,8.27053308,2573.9,2573.4,3.59659]
[1729693223610,0.84998,2573.6,2573.4,3.59659]
[1729693223811,0.38878,2573.5,2573.4,3.59659]
[1729693225218,0.38878,2573.5,2573.4,3.2078]
[1729693225519,0.3888,2573.4,2573.3,0.83421]
[1729693225714,0.3888,2573.4,2573.3,0.4454]
[1729693225915,7.19142261,2573.5,2573.3,0.4454]
[1729693226118,4.16142261,2573.5,2573.3,0.4454]
[1729693226417,0.4612,2573.6,2573.5,0.38878]
[1729693227018,3.4906,2573.9,2573.4,0.4445]
[1729693227217,0.4883,2573.8,2573.7,0.38875]
[1729693227517,0.9717,2574.3,2574.2,0.38868]
[1729693227518,3.2078,2574.3,2574.2,0.38868]
[1729693227815,3.2078,2574.3,2574.1,0.38869]
[1729693227816,0.38868,2574.2,2574.1,0.38869]
[1729693228017,0.38868,2574.2,2573.8,0.4882]
[1729693228018,3.03,2574.2,2573.8,0.4882]
[1729693228213,0.3887,2574.1,2574.0,0.3887]
[1729693228619,3.87199,2574.2,2574.1,0.38869]
[1729693228824,0.38871,2574.1,2574.0,0.3887]
[1729693229118,7.5382069,2574.2,2573.9,40.8]
[1729693229323,3.41871,2574.0,2573.9,41.18872]
[1729693229716,0.38874,2573.9,2573.8,0.38873]
[1729693229921,0.87874,2573.9,2573.8,0.38873]
[1729693230222,0.87874,2573.9,2573.8,41.18873]
[1729693230223,5.28665092,2573.9,2573.8,41.18873]
[1729693230419,0.38874,2573.8,2573.7,0.38874]
[1729693230626,0.38874,2573.8,2573.5,0.4661]
[1729693230627,0.38877,2573.6,2573.5,0.4661]
[1729693230827,3.03,2573.6,2573.1,0.957]
[1729693231016,3.03,2573.6,2573.4,41.18879]
[1729693231017,0.38878,2573.5,2573.4,41.18879]
[1729693231414,7.58684486,2573.6,2573.5,0.38878]
[1729693231624,0.38878,2573.5,2573.4,41.18879]
[1729693231916,7.58683486,2573.6,2573.5,0.38878]
[1729693232313,0.38878,2573.5,2573.4,40.8]
[1729693232514,0.38883,2573.2,2573.1,0.38883]
[1729693232925,0.38883,2573.2,2573.1,41.18883]
[1729693233123,4.62726881,2573.2,2573.1,40.8]
[1729693233320,4.69053881,2573.2,2573.1,41.18884]
[1729693233529,8.57693881,2573.2,2573.1,40.8]
[1729693233820,8.57693881,2573.2,2573.1,41.18884]
[1729693233821,8.96576881,2573.2,2573.1,41.18884]
[1729693234325,0.38884,2573.1,2573.0,3.2078]
[1729693234622,4.23843881,2573.2,2573.1,0.38884]
[1729693234817,0.87591,2573.4,2573.0,6.2378]
[1729693234818,0.4871,2573.4,2573.0,6.2378]
[1729693235017,0.4871,2573.4,2573.3,0.38881]
[1729693235726,0.4871,2573.4,2573.2,0.85401]
[1729693235727,0.38881,2573.3,2573.2,0.85401]
[1729693236416,0.38884,2573.2,2573.1,0.38884]
[1729693236624,0.38884,2573.1,2573.0,3.2078]
[1729693236925,0.38884,2573.1,2573.0,3.59665]
[1729693237120,0.38884,2573.1,2573.0,44.39665]
[1729693238428,4.05464614,2573.2,2573.0,44.39665]
[1729693238429,4.44348614,2573.2,2573.1,0.38884]
[1729693238928,4.44348614,2573.2,2573.0,44.0078]
[1729693239224,0.38884,2573.1,2573.0,44.39665]
[1729693239724,4.05464614,2573.2,2573.0,44.39665]
[1729693239926,4.05464614,2573.2,2573.1,0.38884]
[1729693240124,0.83821,2573.4,2573.3,0.3888]
[1729693240431,5.27045042,2573.4,2573.3,0.3888]
[1729693240822,4.88164042,2573.4,2573.3,0.38881]
[1729693241023,4.43224042,2573.4,2573.3,0.38881]
[1729693241222,0.9015,2573.6,2573.5,0.38878]
[1729693241425,0.4494,2573.6,2573.5,0.38878]
[1729693241825,5.08472116,2573.6,2573.5,0.38878]
[1729693242020,11.61155116,2573.6,2573.3,0.38881]
[1729693242624,11.61155116,2573.6,2573.1,3.6511]
[1729693242826,4.69595116,2573.6,2573.1,4.62321]
[1729693243026,4.69595116,2573.6,2573.1,5.56251]
[1729693243328,4.69595116,2573.6,2573.2,0.97208]
[1729693243718,4.69595116,2573.6,2573.5,0.38878]
[1729693243923,4.69595116,2573.6,2573.2,0.97208]
[1729693244135,4.69595116,2573.6,2573.3,0.38881]
[1729693244325,4.69595116,2573.6,2573.5,0.38878]
[1729693244527,3.2078,2574.0,2573.5,3.03]
[1729693244724,3.2078,2574.0,2573.9,0.38872]
[1729693244725,0.4697,2574.0,2573.9,0.38872]
[1729693245135,0.4697,2574.0,2573.8,0.38874]
[1729693245336,3.9845602,2574.0,2573.8,0.38874]
[1729693245832,3.9845602,2574.0,2573.7,0.4899]
[1729693245833,3.9845602,2574.0,2573.9,0.38872]
[1729693246032,0.9323,2574.2,2574.1,0.38869]
[1729693246033,0.4761,2574.2,2574.1,0.38869]
[1729693246234,0.4597,2574.3,2573.8,1.42774]
[1729693246430,0.4597,2574.3,2574.2,0.38868]
[1729693246833,3.2078,2574.5,2574.4,0.38865]
[1729693247234,3.2078,2574.5,2574.3,0.38866]
[1729693247829,3.2078,2574.5,2574.4,0.38865]
[1729693248227,3.2078,2574.5,2574.2,40.8]
[1729693248428,3.2078,2574.5,2574.4,0.38865]
[1729693248729,3.4897,2574.6,2574.3,0.38865]
[1729693248928,3.4897,2574.6,2574.2,40.8]
[1729693249130,4.30149542,2574.5,2574.3,0.38866]
[1729693249427,4.30149542,2574.5,2574.2,40.8]
[1729693249626,6.9148,2574.4,2574.0,3.2078]
[1729693249824,3.518,2574.4,2574.0,3.5965]
[1729693250025,4.19956508,2574.3,2574.0,3.5965]
[1729693250238,4.19956508,2574.3,2574.1,0.38869]
[1729693250637,4.19956508,2574.3,2574.0,3.2078]
[1729693250638,8.08436508,2574.3,2574.0,3.2078]
[1729693250938,4.19956508,2574.3,2574.0,3.5965]
[1729693251339,4.19956508,2574.3,2574.0,3.2078]
[1729693251542,4.19956508,2574.3,2573.9,40.8]
[1729693251831,4.19956508,2574.3,2574.0,0.3887]
[1729693252038,4.19956508,2574.3,2574.1,0.38869]
[1729693252236,8.08436508,2574.3,2574.1,0.38869]
[1729693253030,4.19956508,2574.3,2574.2,0.38868]
[1729693253229,4.19956508,2574.3,2573.9,40.8]
[1729693253431,4.22013723,2574.4,2574.1,0.38869]
[1729693253634,0.84244,2574.5,2574.0,0.3887]
[1729693253837,0.4538,2574.5,2574.1,0.38869]
[1729693254037,4.04047397,2574.4,2574.1,0.38869]
[1729693254233,4.04047397,2574.4,2573.9,40.8]
[1729693255142,4.04047397,2574.4,2574.1,0.38869]
[1729693255535,4.04047397,2574.4,2573.9,40.8]
[1729693255736,7.07047397,2574.4,2573.9,40.8]
[1729693255939,0.4843,2574.3,2573.9,40.8]
[1729693256240,4.10732318,2574.2,2573.9,40.8]
[1729693256434,0.4426,2574.1,2574.0,0.3887]
[1729693256637,3.6504,2574.1,2573.9,40.8]
[1729693256841,0.38877,2573.6,2573.3,0.83431]
[1729693257139,7.35090352,2573.6,2573.3,0.83431]
[1729693257442,11.23650352,2573.6,2573.3,41.63431]
[1729693257638,12.12580352,2573.6,2573.3,41.63431]
[1729693258242,12.12580352,2573.6,2573.3,0.38881]
[1729693258243,8.24020352,2573.6,2573.3,0.38881]
[1729693258436,3.2078,2573.5,2573.2,0.38882]
[1729693258643,3.2078,2573.5,2572.9,3.10446706]
[1729693258644,3.6581,2573.5,2572.9,3.10446706]
[1729693258837,4.44665033,2573.4,2572.9,3.10446706]
[1729693259043,4.44665033,2573.4,2572.9,2.13228706]
[1729693259242,3.2078,2573.2,2573.0,40.8]
[1729693259436,3.2078,2573.2,2573.0,0.38885]
[1729693259642,3.2078,2573.2,2573.1,0.38884]
[1729693259837,3.2078,2573.2,2572.6,6.21446879]
[1729693259838,3.59664,2573.2,2572.6,6.21446879]
[1729693260041,3.59664,2573.2,2573.0,0.38886]
[1729693260042,0.4827,2573.1,2573.0,0.38886]
[1729693260347,0.4827,2573.1,2573.0,41.18886]
[1729693260542,0.4827,2573.1,2573.0,40.8]
[1729693260749,0.4827,2573.1,2573.0,41.18886]
[1729693261549,7.70554068,2573.2,2573.0,40.8]
[1729693261744,7.70554068,2573.2,2573.1,0.38884]
[1729693261945,7.70554068,2573.2,2573.1,7.26635601]
[1729693261946,3.2078,2573.2,2573.1,7.26635601]
[1729693262239,3.2078,2573.2,2573.1,4.23635601]
[1729693262547,1.1662,2573.2,2573.1,4.23635601]
[1729693262841,3.2078,2573.5,2573.4,0.3888]
[1729693263243,3.2078,2573.5,2573.4,4.2744]
[1729693263444,3.2078,2573.5,2573.3,0.97202]
[1729693263640,3.2078,2573.5,2573.4,0.3888]
[1729693263844,3.2078,2573.5,2573.0,42.02902963]
[1729693264048,3.2078,2573.5,2573.4,0.3888]
[1729693264249,3.2078,2573.5,2573.2,4.62903575]
[1729693264443,3.2078,2573.5,2573.4,3.4188]
[1729693264642,0.8411,2574.1,2573.9,0.38871]
[1729693264643,3.2078,2574.0,2573.9,0.38871]
[1729693265039,6.9528436,2574.0,2573.9,1.96905804]
[1729693265241,6.9528436,2574.0,2573.9,2.09062063]
[1729693265536,6.9528436,2574.0,2573.9,42.89062063]
[1729693265741,6.9528436,2574.0,2573.9,42.50191063]
[1729693265742,10.3715536,2574.0,2573.9,42.50191063]
[1729693265943,10.3715536,2574.0,2573.9,41.52938876]
[1729693266646,14.69576564,2574.0,2573.9,41.52938876]
[1729693267146,11.27705564,2574.0,2573.9,41.91810876]
[1729693267345,10.3715536,2574.0,2573.9,41.52938876]
[1729693267948,14.80676536,2574.0,2573.9,41.52938876]
[1729693268254,14.80676536,2574.0,2573.9,41.40782617]
[1729693268550,0.3888,2573.5,2573.4,0.38879]
[1729693268745,3.5966,2573.5,2573.4,2.28556126]
[1729693268952,6.9528436,2573.5,2573.4,42.89102062]
[1729693269149,7.3416236,2573.5,2573.4,42.89102062]
[1729693269350,7.3416236,2573.5,2573.4,42.89102305]
[1729693269555,6.9528436,2573.5,2573.4,42.89102305]
[1729693269755,6.9528436,2573.5,2573.4,42.89099029]
[1729693270252,6.9528436,2573.5,2573.4,46.1155263]
[1729693270253,3.2078,2573.5,2573.4,46.1155263]
[1729693270454,3.2078,2573.5,2573.4,51.46008466]
[1729693270752,3.2078,2573.5,2573.4,52.06524134]
[1729693270952,3.2078,2573.5,2573.4,52.06514331]
[1729693271154,3.2078,2573.5,2573.4,52.06515296]
[1729693271350,3.2078,2573.5,2573.4,45.14955296]
[1729693271742,3.2078,2573.5,2573.4,44.54448466]
[1729693272148,3.2078,2573.5,2573.4,44.30133315]
[1729693272548,7.3416236,2573.5,2573.4,42.50220029]
[1729693272754,7.3416236,2573.5,2573.4,0.99672868]
[1729693272942,7.8121236,2573.5,2573.4,0.99672868]
[1729693273249,7.8121236,2573.5,2573.4,41.79672868]
[1729693274153,7.8121236,2573.5,2573.4,42.76943806]
[1729693274452,7.4233436,2573.5,2573.4,42.89102669]
[1729693274840,7.8121236,2573.5,2573.4,41.79672868]
[1729693275846,7.8121236,2573.5,2573.4,41.40792868]
[1729693276055,7.8121236,2573.5,2573.4,41.79672868]
[1729693276243,7.8121236,2573.5,2573.4,41.79674614]
[1729693276756,12.13193235,2573.5,2573.4,41.79674614]
[1729693278447,12.13193235,2573.5,2573.4,41.40794614]
[1729693278647,12.13193235,2573.5,2572.7,0.60515437]
[1729693278648,11.74315235,2573.5,2572.7,0.60515437]
[1729693278858,3.59665,2573.1,2573.0,0.38886]
[1729693279157,3.59665,2573.1,2573.0,42.28330609]
[1729693279360,7.7893936,2573.1,2573.0,42.28330609]
[1729693279762,7.7893936,2573.1,2573.0,42.28331794]
[1729693279955,7.7893936,2573.1,2573.0,41.18886]
[1729693280158,8.2734936,2573.1,2573.0,41.18886]
[1729693280657,7.8846436,2573.1,2573.0,41.18886]
[1729693280855,8.2734836,2573.1,2573.0,41.18886]
[1729693285274,7.8846436,2573.1,2573.0,41.18886]
[1729693285460,6.9528436,2573.1,2573.0,41.18886]
[1729693286467,7.3416836,2573.1,2573.0,41.18886]
[1729693287366,6.9528436,2573.1,2573.0,41.18886]
[1729693287572,6.9528436,2573.1,2573.0,42.16175311]
[1729693288673,7.3416836,2573.1,2573.0,42.16175311]
[1729693288875,7.3416836,2573.1,2573.0,41.18886]
[1729693289068,6.9528436,2573.1,2573.0,42.16173034]
[1729693289671,7.3416836,2573.1,2573.0,42.16173034]
[1729693289868,7.3416836,2573.1,2573.0,41.18886]
[1729693290885,7.3416836,2573.1,2573.0,41.79692261]
[1729693291878,7.3416836,2573.1,2573.0,0.60806261]
[1729693291879,11.69906774,2573.1,2573.0,0.60806261]
[1729693292080,0.38892,2572.7,2572.6,0.3889]
[1729693292383,3.59671,2572.7,2572.6,41.1889]
[1729693292580,11.69913774,2572.7,2572.6,41.1889]
[1729693293183,11.69913774,2572.7,2572.6,40.8]
[1729693293679,11.69913774,2572.7,2572.0,6.78169088]
[1729693293680,0.38898,2572.3,2572.2,0.38896]
[1729693293981,6.62678,2572.3,2572.2,0.38896]
[1729693294179,10.3718236,2572.3,2572.2,0.38896]
[1729693294884,6.9528436,2572.3,2572.2,0.38896]
[1729693295478,7.3418136,2572.3,2572.2,0.38896]
[1729693295679,6.9528436,2572.3,2572.2,0.38896]
[1729693296282,7.3418136,2572.3,2572.2,41.18896]
[1729693296675,0.38905,2571.8,2571.3,0.97279]
[1729693296880,3.7450436,2571.6,2571.5,0.38909]
[1729693297075,0.38911,2571.4,2571.3,0.38911]
[1729693297274,6.62691,2571.4,2571.3,0.38911]
[1729693297474,10.3719536,2571.4,2571.3,0.38911]
[1729693297679,10.3719536,2571.4,2571.3,41.18912]
[1729693297680,9.9828436,2571.4,2571.3,41.18912]
[1729693298686,10.3719436,2571.4,2571.3,41.18912]
[1729693299086,9.9828436,2571.4,2571.3,41.18912]
[1729693301384,6.9528436,2571.4,2571.3,41.18912]
[1729693302184,3.2078,2571.6,2571.5,0.38909]
[1729693302381,6.9528436,2571.6,2571.5,0.38909]
[1729693304678,3.7450436,2571.6,2571.5,0.38909]
[1729693307685,4.6152136,2571.6,2571.5,0.38909]
[1729693308084,8.72076107,2571.6,2571.3,40.8]
[1729693308283,0.3891,2571.5,2571.4,0.38909]
[1729693308683,4.1341436,2571.5,2571.4,0.38909]
[1729693309200,0.3891,2571.4,2571.3,41.18911]
[1729693309485,7.1641436,2571.4,2571.3,41.18911]
[1729693309796,7.6071436,2571.4,2571.3,41.18911]
[1729693312187,7.2180436,2571.4,2571.3,41.18911]
[1729693312379,6.7750436,2571.4,2571.3,41.18911]
[1729693312583,3.7450436,2571.4,2571.3,41.18911]
[1729693314093,3.7450436,2571.4,2571.3,41.79751299]
[1729693314296,3.7450436,2571.4,2571.3,41.18911]
[1729693314791,3.7450436,2571.4,2571.3,41.79750703]
[1729693315181,3.7450436,2571.4,2571.3,41.18911]
[1729693315388,3.7450436,2571.4,2571.3,41.79749939]
[1729693317585,3.7450436,2571.4,2571.3,41.79749422]
[1729693318395,3.7450436,2571.4,2571.3,42.77092112]
[1729693318693,3.7450436,2571.4,2571.3,41.18912]
[1729693318895,3.7450436,2571.4,2571.3,42.77092306]
[1729693319887,0.4811,2571.6,2571.3,42.38180306]
[1729693320188,3.7450436,2571.5,2571.4,1.97087657]
[1729693320397,3.7450436,2571.5,2571.4,2.45327657]
[1729693320687,6.7750436,2571.5,2571.4,1.97087657]
[1729693320893,6.7750436,2571.5,2571.4,0.99748579]
[1729693321280,6.7750436,2571.5,2571.4,1.97090413]
[1729693321690,6.7750436,2571.5,2571.4,1.97090513]
[1729693322285,0.4674,2571.7,2571.6,0.38907]
[1729693322486,0.4674,2571.7,2571.6,1.97087513]
[1729693322696,0.4674,2571.7,2571.6,1.97080578]
[1729693322697,4.2124436,2571.7,2571.6,1.97080578]
[1729693323085,0.4674,2571.7,2571.6,1.97080578]
[1729693323290,4.6015036,2571.7,2571.6,1.97080578]
[1729693323592,4.6015036,2571.7,2571.6,0.99745659]
[1729693323796,0.3891,2571.5,2571.4,0.38909]
[1729693324098,3.4191,2571.5,2571.4,0.38909]
[1729693324290,7.1641436,2571.5,2571.4,0.38909]
[1729693324491,6.7750436,2571.5,2571.4,0.38909]
[1729693324697,7.1641336,2571.5,2571.4,0.38909]
[1729693325998,6.7750436,2571.5,2571.4,0.38909]
[1729693326686,7.1641336,2571.5,2571.4,0.38909]
[1729693327088,6.7750436,2571.5,2571.4,0.38909]
[1729693328199,7.1641336,2571.5,2571.4,0.38909]
[1729693329598,6.7750436,2571.5,2571.4,0.38909]
[1729693330402,7.1641336,2571.5,2571.4,0.38909]
[1729693331906,6.7750436,2571.5,2571.4,0.38909]
[1729693332103,3.7450436,2571.5,2571.4,0.38909]
[1729693332405,13.375,2573.3,2571.4,4.86218582]
[1729693332406,3.03,2572.1,2571.4,4.86218582]
[1729693332709,3.03,2572.1,2572.0,0.38901]
[1729693333004,3.419,2572.1,2572.0,0.38901]
[1729693333307,3.419,2572.1,2571.3,42.74554]
[1729693333308,3.3559936,2571.7,2571.3,42.74554]
[1729693333495,3.3559936,2571.4,2571.3,40.8]
[1729693333697,3.4191,2571.4,2571.3,40.8]
[1729693334008,11.14693056,2571.4,2571.3,40.8]
[1729693334200,11.14693056,2571.4,2571.1,0.38913]